bitfinex-derivatives/quotes_SOLF0:USTF0_20240912
["timestamp","ask_amount","ask_price","bid_price","bid_amount"]
[1726146181991,40.26,134.33,134.22,3.3524]
[1726146182397,40.26,134.33,134.21,22.6718]
[1726146182602,1.0,134.32,134.21,19.3192]
[1726146183099,3.3519,134.25,134.21,22.6719]
[1726146184104,4.106,134.3,134.23,3.3521]
[1726146184399,4.106,134.3,134.21,19.3192]
[1726146184793,1.0,134.32,134.27,17.89]
[1726146185099,4.1126,134.35,134.27,21.61690014]
[1726146185397,3.3502,134.32,134.28,3.351]
[1726146185996,3.3503,134.31,134.27,21.2412]
[1726146187394,3.3501,134.32,134.28,3.3508]
[1726146188099,3.3499,134.33,134.29,17.89]
[1726146188290,1.3767,134.35,134.29,17.89]
[1726146188803,3.3495,134.34,134.3,3.3504]
[1726146189400,3.3498,134.33,134.29,21.2407]
[1726146189800,1.3767,134.35,134.29,17.89]
[1726146190113,3.3502,134.32,134.29,17.89]
[1726146190301,1.3767,134.35,134.29,17.89]
[1726146190498,1.3767,134.35,134.29,21.2407]
[1726146190499,3.3499,134.33,134.29,21.2407]
[1726146190998,3.3499,134.33,134.29,17.89]
[1726146191394,20.7848,134.4,134.29,17.89]
[1726146191708,4.2555,134.4,134.31,17.89]
[1726146192093,1.14708436,134.39,134.3,3.3505]
[1726146192293,22.1455,134.4,134.3,3.3505]
[1726146192704,1.0,134.39,134.3,3.3505]
[1726146193908,3.3495,134.35,134.31,3.3502]
[1726146194104,3.3495,134.35,134.31,17.89]
[1726146194304,1.0,134.39,134.31,17.89]
[1726146194504,3.3491,134.36,134.31,17.89]
[1726146194709,3.3491,134.36,134.32,3.3498]
[1726146195106,3.3489,134.37,134.31,17.89]
[1726146195603,3.3489,134.37,134.33,3.3495]
[1726146195910,3.3489,134.37,134.31,17.89]
[1726146196108,3.3489,134.37,134.33,3.3496]
[1726146196306,1.0,134.39,134.31,17.89]
[1726146196710,1.0,134.39,134.31,21.24]
[1726146197107,1.0,134.39,134.31,17.89]
[1726146197504,3.3494,134.35,134.31,17.89]
[1726146197709,3.3494,134.35,134.31,21.2401]
[1726146198204,3.3494,134.35,134.31,17.89]
[1726146198399,1.0,134.39,134.31,17.89]
[1726146198919,3.3492,134.35,134.31,21.2401]
[1726146199102,1.0,134.39,134.31,21.2401]
[1726146199413,1.0,134.39,134.31,17.89]
[1726146199612,3.3493,134.35,134.32,3.35]
[1726146200210,3.349,134.36,134.33,3.3497]
[1726146200514,1.0,134.39,134.31,17.89]
[1726146201413,1.0,134.39,134.31,21.2402]
[1726146201601,1.0,134.39,134.33,17.89]
[1726146201802,3.3486,134.38,134.35,17.89]
[1726146202113,1.0,134.39,134.35,17.89]
[1726146202509,3.3489,134.37,134.35,17.89]
[1726146203212,3.349,134.36,134.33,17.89]
[1726146203414,1.0,134.39,134.28,0.9503]
[1726146203415,1.0,134.39,134.31,17.89]
[1726146203605,3.9521,134.39,134.31,17.89]
[1726146203808,3.3499,134.33,134.31,17.89]
[1726146204199,3.9521,134.39,134.29,17.89]
[1726146204200,26.3221,134.39,134.29,17.89]
[1726146204609,3.9521,134.39,134.29,17.89]
[1726146205016,3.3496,134.34,134.3,3.3503]
[1726146208020,3.3496,134.34,134.31,21.2402]
[1726146208321,3.3493,134.35,134.33,17.89]
[1726146208706,3.3491,134.36,134.33,17.89]
[1726146209723,3.3491,134.36,134.33,19.3792]
[1726146210122,3.3491,134.36,134.33,22.7289]
[1726146211929,1.5048,134.42,134.35,17.89]
[1726146212519,3.3482,134.4,134.36,3.3489]
[1726146212712,1.4139,134.43,134.36,3.3489]
[1726146215321,3.3483,134.39,134.36,3.3489]
[1726146215527,1.4139,134.43,134.35,17.89]
[1726146216131,1.4139,134.43,134.36,3.3489]
[1726146216430,3.3478,134.41,134.35,17.89]
[1726146216829,3.3478,134.41,134.37,3.3486]
[1726146217136,3.3478,134.41,134.37,21.2386]
[1726146219435,3.3482,134.4,134.36,21.2389]
[1726146219640,1.3821,134.44,134.36,21.2389]
[1726146219826,1.3821,134.44,134.36,17.89]
[1726146221135,3.3477,134.42,134.38,3.3484]
[1726146222732,3.3478,134.41,134.38,3.3484]
[1726146223940,3.3471,134.44,134.4,3.3478]
[1726146224241,1.439,134.47,134.4,17.89]
[1726146224633,3.347,134.45,134.41,6.9771304]
[1726146224929,1.439,134.47,134.41,6.9771304]
[1726146225130,1.439,134.47,134.4,17.89]
[1726146225543,1.439,134.47,134.4,3.73148768]
[1726146225743,1.439,134.47,134.39,17.89]
[1726146225945,1.439,134.47,134.4,3.65818263]
[1726146226640,3.3471,134.44,134.4,7.00598263]
[1726146226845,1.439,134.47,134.41,17.89]
[1726146227236,3.3467,134.46,134.42,3.3474]
[1726146227547,1.4589,134.48,134.41,21.60213812]
[1726146228138,3.3465,134.47,134.43,21.2371]
[1726146228550,1.3976,134.52,134.43,21.2371]
[1726146228846,1.14482963,134.51,134.43,21.2371]
[1726146229949,3.3465,134.46,134.43,21.2371]
[1726146230133,1.3976,134.52,134.43,17.89]
[1726146230337,3.68656388,134.51,134.41,17.89]
[1726146230545,27.20172645,134.51,134.41,17.89]
[1726146230753,27.18643388,134.5,134.41,17.89]
[1726146230943,3.3475,134.42,134.41,17.89]
[1726146231354,3.3474,134.43,134.41,17.89]
[1726146232340,3.3475,134.42,134.39,3.3482]
[1726146232547,3.3475,134.42,134.39,17.89]
[1726146232743,1.5127,134.48,134.39,17.89]
[1726146232944,3.3476,134.42,134.39,17.89]
[1726146233259,1.4617,134.47,134.39,17.89]
[1726146233464,3.3484,134.39,134.35,2.8303]
[1726146233656,17.89,134.45,134.35,2.8303]
[1726146234048,3.3488,134.37,134.34,17.89]
[1726146234250,21.62622692,134.43,134.32,17.89]
[1726146234549,3.3492,134.36,134.32,17.89]
[1726146234952,1.4617,134.41,134.32,17.89]
[1726146235351,1.4536,134.4,134.32,17.89]
[1726146235966,3.3489,134.37,134.32,21.2399]
[1726146236154,3.3489,134.37,134.32,17.89]
[1726146237167,3.349,134.36,134.32,17.89]
[1726146239564,3.349,134.36,134.32,21.24]
[1726146240561,3.3493,134.35,134.32,17.89]
[1726146241867,1.4536,134.4,134.34,17.89]
[1726146243458,3.349,134.36,134.32,21.2399]
[1726146243661,1.4536,134.4,134.33,3.73864482]
[1726146244164,3.3485,134.38,134.33,7.08814482]
[1726146244366,1.4617,134.41,134.34,17.89]
[1726146245065,3.3484,134.39,134.35,7.16229594]
[1726146246769,3.3485,134.38,134.35,7.16229594]
[1726146247270,3.3483,134.39,134.36,3.349]
[1726146248469,3.3483,134.39,134.36,21.239]
[1726146250572,3.3481,134.4,134.36,17.89]
[1726146250868,3.3481,134.4,134.36,19.3428]
[1726146251061,3.3481,134.4,134.38,3.3485]
[1726146251372,3.3478,134.41,134.38,3.3485]
[1726146251673,1.4553,134.45,134.39,3.3482]
[1726146251866,1.4553,134.45,134.38,17.89]
[1726146252457,3.3479,134.41,134.38,17.89]
[1726146253156,3.3481,134.4,134.38,17.89]
[1726146254573,3.3479,134.41,134.38,21.2384]
[1726146254961,19.2906,134.47,134.38,17.89]
[1726146255367,3.3477,134.42,134.39,3.3481]
[1726146255564,1.4006,134.47,134.38,17.89]
[1726146255764,3.3468,134.45,134.41,3.3475]
[1726146255969,3.3468,134.45,134.42,3.70524748]
[1726146256173,1.4006,134.47,134.4,17.89]
[1726146256567,3.3469,134.45,134.4,17.89]
[1726146257377,3.3469,134.45,134.42,3.3475]
[1726146257578,3.3466,134.46,134.42,3.77251079]
[1726146257779,3.3466,134.46,134.42,17.89]
[1726146258085,1.4117,134.5,134.43,7.12417574]
[1726146258380,3.3464,134.47,134.43,7.12417574]
[1726146258573,1.4117,134.5,134.43,7.12417574]
[1726146258969,3.3467,134.46,134.42,21.2374]
[1726146259282,1.4117,134.5,134.42,17.89]
[1726146259574,1.4117,134.5,134.42,21.68967257]
[1726146260172,1.4117,134.5,134.38,17.89]
[1726146260173,3.348,134.41,134.38,17.89]
[1726146260476,17.89,134.47,134.38,17.89]
[1726146261080,17.89,134.49,134.39,3.3481]
[1726146261282,17.89,134.49,134.41,17.89]
[1726146261485,1.4117,134.5,134.41,17.89]
[1726146262775,3.3473,134.43,134.41,17.89]
[1726146263367,1.4117,134.5,134.41,21.2377]
[1726146263569,1.4117,134.5,134.41,17.89]
[1726146263983,3.3471,134.44,134.41,17.89]
[1726146264583,3.3474,134.43,134.39,17.89]
[1726146264786,41.6717,134.5,134.39,17.89]
[1726146265278,3.3475,134.43,134.39,17.89]
[1726146265780,1.0,134.49,134.39,17.89]
[1726146265988,22.37,134.48,134.37,17.89]
[1726146266175,19.27,134.47,134.37,17.89]
[1726146266469,20.6952,134.47,134.37,17.89]
[1726146266676,3.3479,134.41,134.37,21.2386]
[1726146267479,3.3476,134.42,134.38,3.3483]
[1726146267988,3.3476,134.42,134.39,3.3482]
[1726146270593,3.3478,134.41,134.39,3.3482]
[1726146271495,3.3478,134.41,134.38,3.3484]
[1726146272685,3.8052,134.47,134.37,17.89]
[1726146273287,3.8052,134.47,134.37,21.2385]
[1726146273488,21.6952,134.47,134.36,1.4528]
[1726146273678,44.0652,134.47,134.36,19.3428]
[1726146274085,1.14664707,134.46,134.36,22.6917]
[1726146274486,1.4546,134.45,134.36,22.6917]
[1726146274690,17.89,134.44,134.35,1.3791]
[1726146275199,3.3487,134.38,134.35,1.3791]
[1726146275791,3.3488,134.37,134.35,1.3791]
[1726146276185,11.44,134.41,134.35,12.8191]
[1726146276799,3.3485,134.39,134.35,12.8191]
[1726146277194,11.44,134.41,134.35,12.8191]
[1726146277389,3.3487,134.37,134.35,12.8191]
[1726146278092,3.3487,134.37,134.35,1.3791]
[1726146278290,3.3487,134.37,134.34,3.64097257]
[1726146278490,3.349,134.36,134.33,21.2197]
[1726146279003,3.349,134.36,134.33,24.90790726]
[1726146279497,2.9261,134.42,134.35,17.87]
[1726146279691,1.0,134.43,134.35,17.87]
[1726146279884,3.348,134.41,134.37,21.2187]
[1726146280195,1.4546,134.45,134.37,17.87]
[1726146281292,3.3482,134.4,134.37,17.87]
[1726146281496,1.4546,134.45,134.37,17.87]
[1726146281696,3.348,134.4,134.37,21.2187]
[1726146283092,3.3479,134.41,134.37,21.2187]
[1726146284193,1.4546,134.45,134.37,17.87]
[1726146286906,3.3476,134.42,134.38,3.3485]
[1726146287799,3.3478,134.41,134.37,21.2187]
[1726146288304,3.3476,134.42,134.38,3.3484]
[1726146291307,3.3477,134.41,134.38,3.3484]
[1726146293312,3.3477,134.41,134.37,21.2186]
[1726146294102,3.3476,134.42,134.37,17.87]
[1726146294607,3.3476,134.42,134.38,3.3484]
[1726146295000,1.4546,134.45,134.38,3.3484]
[1726146295001,3.3478,134.41,134.38,3.3484]
[1726146295201,1.4546,134.45,134.39,3.3481]
[1726146295403,1.4546,134.45,134.4,3.81260698]
[1726146295613,3.3477,134.42,134.4,3.81260698]
[1726146296412,3.3474,134.43,134.4,7.16050698]
[1726146296613,1.4546,134.45,134.4,3.81260698]
[1726146297419,1.4546,134.45,134.32,1.84263651]
[1726146297714,3.3479,134.41,134.37,17.87]
[1726146297912,3.3479,134.41,134.37,21.55571853]
[1726146298115,3.3479,134.41,134.39,11.43]
[1726146298415,12.8846,134.45,134.33,17.87]
[1726146298416,3.348,134.4,134.33,17.87]
[1726146298617,3.348,134.4,134.39,11.43]
[1726146299112,3.3479,134.41,134.39,11.43]
[1726146299915,3.3476,134.42,134.39,14.7782]
[1726146300111,12.8846,134.45,134.33,21.60995046]
[1726146300112,1.4546,134.45,134.4,11.43]
[1726146300611,3.3474,134.43,134.4,11.43]
[1726146301015,1.4546,134.45,134.4,11.43]
[1726146301210,3.3477,134.42,134.39,11.43]
[1726146301610,12.8846,134.45,134.39,11.43]
[1726146302015,12.8846,134.45,134.38,3.80507591]
[1726146302212,11.43,134.44,134.37,11.43]
[1726146302405,1.4546,134.45,134.38,11.43]
[1726146302611,12.8846,134.45,134.38,11.43]
[1726146303018,3.3481,134.4,134.38,11.43]
[1726146303206,1.4546,134.45,134.38,11.43]
[1726146303620,3.3478,134.41,134.38,11.43]
[1726146304025,11.43,134.44,134.37,15.12492408]
[1726146304907,3.3482,134.4,134.37,15.12492408]
[1726146305104,3.3482,134.4,134.37,3.69492408]
[1726146305318,3.3482,134.4,134.37,15.12492408]
[1726146307618,1.4546,134.45,134.39,11.43]
[1726146307812,1.4546,134.45,134.41,11.43]
[1726146308016,1.4546,134.45,134.4,11.43]
[1726146308217,1.4546,134.45,134.41,11.43]
[1726146308524,1.4546,134.45,134.32,1.84263651]
[1726146308525,1.5071,134.5,134.44,11.43]
[1726146308922,3.3468,134.45,134.44,11.43]
[1726146309117,1.5071,134.5,134.44,11.43]
[1726146309510,3.3467,134.46,134.44,11.43]
[1726146310220,3.3468,134.45,134.44,11.43]
[1726146311618,3.3466,134.46,134.44,11.43]
[1726146312325,3.3468,134.45,134.44,11.43]
[1726146313127,3.3466,134.46,134.44,11.43]
[1726146314323,3.3464,134.47,134.44,11.43]
[1726146314528,3.3464,134.47,134.45,11.43]
[1726146314728,2.9737,134.51,134.45,11.43]
[1726146314929,2.9737,134.51,134.47,11.43]
[1726146315621,1.4558,134.51,134.47,11.43]
[1726146315930,103.60402469,134.52,134.49,11.43]
[1726146316521,3.3453,134.51,134.49,11.43]
[1726146316824,1.47,134.54,134.5,11.43]
[1726146317735,20.66399846,134.59,134.48,3.81072836]
[1726146317736,11.43,134.58,134.52,11.43]
[1726146317918,3.3448,134.53,134.52,11.43]
[1726146318732,3.3455,134.5,134.48,3.79369329]
[1726146318929,3.3455,134.5,134.49,11.43]
[1726146319228,11.43,134.56,134.49,11.43]
[1726146319442,11.43,134.56,134.5,11.43]
[1726146319624,1.3761,134.57,134.53,11.43]
[1726146319933,1.149777,134.55,134.53,11.43]
[1726146320428,3.3445,134.54,134.53,11.43]
[1726146323835,3.3444,134.55,134.53,11.43]
[1726146324033,3.3444,134.55,134.54,11.43]
[1726146326139,1.4917,134.59,134.54,11.43]
[1726146326331,1.4917,134.59,134.55,11.43]
[1726146326733,3.3439,134.57,134.55,11.43]
[1726146326935,14.2583,134.61,134.55,11.43]
[1726146327140,1.14883383,134.6,134.55,11.43]
[1726146328630,3.344,134.57,134.55,11.43]
[1726146328835,14.2583,134.61,134.55,11.43]
[1726146329148,3.3439,134.57,134.55,11.43]
[1726146330142,2.8283,134.61,134.56,11.43]
[1726146330542,14.2583,134.61,134.56,11.43]
[1726146330942,2.8283,134.61,134.56,11.43]
[1726146331239,3.3435,134.58,134.56,11.43]
[1726146331444,2.8283,134.61,134.56,11.43]
[1726146331642,3.3435,134.59,134.56,11.43]
[1726146331953,2.8283,134.61,134.56,11.43]
[1726146332535,3.3437,134.58,134.56,11.43]
[1726146333039,3.3439,134.57,134.55,11.43]
[1726146333447,3.3439,134.57,134.56,11.43]
[1726146333850,2.8283,134.61,134.56,11.43]
[1726146335147,3.3437,134.58,134.56,11.43]
[1726146335332,2.8283,134.61,134.56,11.43]
[1726146335933,2.8283,134.61,134.5,1.1185]
[1726146336150,12.57910926,134.6,134.5,1.1185]
[1726146336342,11.43,134.6,134.54,11.43]
[1726146336544,3.3444,134.55,134.54,11.43]
[1726146337042,3.3441,134.56,134.54,11.43]
[1726146337341,2.8283,134.61,134.56,11.43]
[1726146337543,2.8283,134.61,134.57,11.43]
[1726146337544,1.14842451,134.6,134.57,11.43]
[1726146337742,3.3437,134.58,134.57,11.43]
[1726146337944,2.8283,134.61,134.56,11.43]
[1726146338146,1.14829777,134.6,134.53,3.64089219]
[1726146338342,1.14829777,134.6,134.55,11.43]
[1726146339243,3.3439,134.57,134.55,11.43]
[1726146340751,3.344,134.56,134.55,11.43]
[1726146341941,3.3439,134.57,134.55,11.43]
[1726146342538,14.2583,134.61,134.5,4.79284944]
[1726146342746,1.14815419,134.6,134.53,11.43]
[1726146343643,3.344,134.57,134.55,11.43]
[1726146343847,2.8283,134.61,134.55,11.43]
[1726146344651,1.14808069,134.6,134.55,11.43]
[1726146344848,3.3437,134.58,134.55,11.43]
[1726146345654,3.3438,134.57,134.55,11.43]
[1726146346756,2.8283,134.61,134.56,11.43]
[1726146347449,2.8283,134.61,134.58,11.43]
[1726146347450,3.3435,134.59,134.58,11.43]
[1726146347843,1.4105,134.61,134.58,11.43]
[1726146348045,1.4865,134.63,134.58,11.43]
[1726146348248,1.14820511,134.62,134.58,11.43]
[1726146348457,3.3433,134.59,134.58,11.43]
[1726146348660,1.4865,134.63,134.5,4.79284944]
[1726146348953,1.14820249,134.62,134.56,11.43]
[1726146349458,3.3437,134.58,134.56,11.43]
[1726146350259,3.3438,134.57,134.56,11.43]
[1726146350557,11.43,134.62,134.56,11.43]
[1726146350754,1.14818192,134.61,134.56,11.43]
[1726146350966,2.52928192,134.61,134.56,11.43]
[1726146351153,1.3811,134.61,134.56,11.43]
[1726146351561,3.3434,134.59,134.56,11.43]
[1726146351762,3.3434,134.59,134.58,11.43]
[1726146352564,3.3438,134.57,134.5,4.79284944]
[1726146352751,1.3811,134.61,134.55,11.43]
[1726146353455,3.3436,134.58,134.55,11.43]
[1726146354764,12.8111,134.61,134.55,11.43]
[1726146355350,3.344,134.57,134.55,11.43]
[1726146355953,3.3442,134.56,134.52,3.345]
[1726146356158,1.4666,134.6,134.54,11.43]
[1726146356352,12.8966,134.6,134.54,11.43]
[1726146356771,35.2166,134.6,134.53,11.43]
[1726146356972,1.14802511,134.59,134.53,11.43]
[1726146357267,2.14802511,134.59,134.53,11.43]
[1726146358168,3.344,134.56,134.53,11.43]
[1726146358863,3.3443,134.55,134.53,11.43]
[1726146359267,1.0,134.59,134.53,11.43]
[1726146359569,3.3441,134.56,134.53,11.43]
[1726146359962,3.3445,134.55,134.52,11.43]
[1726146360162,11.43,134.56,134.49,2.9297]
[1726146360368,11.43,134.56,134.5,11.43]
[1726146360569,1.38,134.55,134.5,11.43]
[1726146361772,1.38,134.55,134.48,3.70845505]
[1726146361957,3.3452,134.52,134.5,11.43]
[1726146363057,3.3449,134.53,134.5,11.43]
[1726146364055,3.3449,134.53,134.48,7.00788784]
[1726146364268,3.3451,134.52,134.49,11.43]
[1726146365569,3.3449,134.53,134.49,14.7757]
[1726146365955,3.3447,134.54,134.52,11.43]
[1726146366966,3.3447,134.54,134.5,11.43]
[1726146367371,3.3448,134.53,134.5,11.43]
[1726146368086,3.3446,134.54,134.5,11.43]
[1726146368683,3.345,134.53,134.5,11.43]
[1726146368979,1.38,134.55,134.5,11.43]
[1726146369581,1.38,134.55,134.5,14.7754]
[1726146369582,4.7245,134.55,134.5,14.7754]
[1726146370177,3.3446,134.54,134.5,14.7754]
[1726146370979,4.7244,134.55,134.51,11.43]
[1726146371681,3.3446,134.54,134.51,11.43]
[1726146372178,4.7244,134.55,134.51,11.43]
[1726146372374,4.7244,134.55,134.5,3.3454]
[1726146372571,1.38,134.55,134.5,11.43]
[1726146372780,3.3446,134.54,134.5,11.43]
[1726146373168,3.3446,134.54,134.5,18.45084251]
[1726146373377,3.3446,134.54,134.51,11.43]
[1726146374874,1.38,134.55,134.5,11.43]
[1726146375584,11.43,134.53,134.43,3.0441]
[1726146375780,11.43,134.52,134.43,3.0441]
[1726146376081,11.43,134.51,134.45,11.43]
[1726146376680,3.3461,134.48,134.45,11.43]
[1726146377376,3.3463,134.47,134.45,11.43]
[1726146377579,2.5083,134.53,134.45,11.43]
[1726146377777,2.5083,134.53,134.43,3.0441]
[1726146377778,3.3456,134.5,134.46,11.43]
[1726146377973,1.14792919,134.52,134.47,11.43]
[1726146378286,1.14792919,134.52,134.47,14.7762]
[1726146378491,1.0,134.53,134.49,11.43]
[1726146380889,3.3451,134.52,134.49,11.43]
[1726146382492,3.3451,134.52,134.47,14.7762]
[1726146385193,3.3451,134.52,134.48,7.14842041]
[1726146386589,3.3453,134.51,134.47,14.7762]
[1726146388403,3.3457,134.5,134.47,3.3462]
[1726146388697,3.3457,134.5,134.48,11.43]
[1726146389098,3.3453,134.51,134.48,14.776]
[1726146391002,3.3456,134.5,134.48,11.43]
[1726146391699,3.3454,134.51,134.48,14.776]
[1726146391899,3.3454,134.51,134.48,11.43]
[1726146394309,12.43,134.53,134.46,11.43]
[1726146395402,3.3457,134.5,134.46,14.7764]
[1726146396203,3.3458,134.49,134.46,11.43]
[1726146397006,3.3456,134.5,134.48,11.43]
[1726146397197,12.43,134.53,134.48,11.43]
[1726146398704,1.0,134.53,134.48,11.43]
[1726146398908,12.43,134.53,134.48,11.43]
[1726146399110,1.0,134.53,134.49,11.43]
[1726146400300,3.3451,134.52,134.49,11.43]
[1726146401205,3.3453,134.51,134.48,3.6399216]
[1726146401407,3.3453,134.51,134.48,11.43]
[1726146401711,3.3453,134.51,134.48,15.20528443]
[1726146402105,3.3456,134.5,134.48,11.43]
[1726146403413,3.3458,134.49,134.47,11.43]
[1726146404121,3.3456,134.5,134.47,11.43]
[1726146404412,1.0,134.53,134.48,11.43]
[1726146406218,3.3455,134.51,134.48,11.43]
[1726146406816,34.75,134.53,134.47,11.43]
[1726146407114,12.43,134.53,134.47,11.43]
[1726146408107,3.3454,134.51,134.47,11.43]
[1726146408305,3.3454,134.51,134.47,14.7761]
[1726146408813,3.3455,134.5,134.47,11.43]
[1726146409016,3.3455,134.5,134.43,3.0441]
[1726146409200,3.3455,134.5,134.47,11.43]
[1726146410621,3.3453,134.51,134.47,11.43]
[1726146410810,1.0,134.53,134.47,11.43]
[1726146411015,1.0,134.53,134.43,3.0441]
[1726146411213,3.3452,134.52,134.49,11.43]
[1726146412217,1.0,134.53,134.49,11.43]
[1726146412407,1.38,134.55,134.49,11.43]
[1726146412912,1.38,134.55,134.49,14.7757]
[1726146413111,1.38,134.55,134.49,18.48739365]
[1726146413307,1.38,134.55,134.5,11.43]
[1726146413714,3.3449,134.53,134.5,15.12198423]
[1726146413905,1.38,134.55,134.5,15.12198423]
[1726146415122,2.9373,134.58,134.5,15.12198423]
[1726146415311,11.43,134.57,134.52,11.43]
[1726146415814,3.3444,134.55,134.52,11.43]
[1726146418511,3.3441,134.56,134.52,11.43]
[1726146418730,3.3441,134.56,134.52,14.7749]
[1726146418915,3.3441,134.56,134.53,11.43]
[1726146419516,3.3443,134.55,134.53,11.43]
[1726146420723,3.0055,134.58,134.53,11.43]
[1726146420724,3.3441,134.56,134.53,11.43]
[1726146421119,3.0055,134.58,134.53,11.43]
[1726146421516,3.0055,134.58,134.52,11.43]
[1726146421517,14.4355,134.58,134.52,11.43]
[1726146421725,1.14912742,134.57,134.52,11.43]
[1726146422322,11.43,134.56,134.43,9.7385]
[1726146422522,11.43,134.56,134.5,11.43]
[1726146422825,11.43,134.57,134.51,11.43]
[1726146423433,33.75,134.57,134.51,11.43]
[1726146424230,11.43,134.57,134.51,11.43]
[1726146425729,50.68195049,134.57,134.51,11.43]
[1726146426029,33.75,134.57,134.51,11.43]
[1726146426533,3.3449,134.53,134.51,11.43]
[1726146426829,3.3449,134.53,134.42,1.1206]
[1726146426830,39.25119348,134.56,134.32,0.42323651]
[1726146427037,2.8948,134.52,134.36,1.3957]
[1726146427328,22.32,134.48,134.36,1.3957]
[1726146427533,22.32,134.48,134.36,5.08574238]
[1726146427837,11.43,134.48,134.41,11.43]
[1726146428024,11.43,134.49,134.41,11.43]
[1726146428730,22.32,134.48,134.41,11.43]
[1726146428926,3.3468,134.45,134.36,5.08574238]
[1726146429132,11.43,134.46,134.36,5.08574238]
[1726146429327,11.43,134.46,134.39,11.43]
[1726146429936,3.347,134.44,134.36,5.08574238]
[1726146430138,33.75,134.45,134.37,11.43]
[1726146430439,3.3472,134.44,134.37,11.43]
[1726146430632,1.4118,134.45,134.4,11.43]
[1726146431830,1.4118,134.45,134.38,11.43]
[1726146432438,3.3472,134.43,134.38,11.43]
[1726146436930,3.3475,134.42,134.38,11.43]
[1726146439441,3.3479,134.41,134.38,11.43]
[1726146439639,11.43,134.44,134.37,11.43]
[1726146439832,11.43,134.43,134.37,11.43]
[1726146440032,3.3487,134.38,134.34,11.43]
[1726146440241,11.43,134.41,134.34,11.43]
[1726146440444,11.43,134.41,134.36,11.43]
[1726146440756,3.348,134.4,134.37,11.43]
[1726146441744,3.3478,134.41,134.37,11.43]
[1726146443146,3.348,134.4,134.37,11.43]
[1726146445945,1.0,134.43,134.38,11.43]
[1726146446150,1.0,134.43,134.4,11.43]
[1726146446448,1.0,134.43,134.39,3.80442857]
[1726146446449,3.3475,134.42,134.39,11.43]
[1726146448536,3.3479,134.41,134.39,11.43]
[1726146448746,1.4118,134.45,134.39,11.43]
[1726146449551,1.4821,134.46,134.4,11.43]
[1726146449758,12.9339,134.49,134.43,11.43]
[1726146450063,1.5039,134.49,134.43,11.43]
[1726146450950,3.3464,134.47,134.43,11.43]
[1726146451755,3.3467,134.46,134.43,11.43]
[1726146457360,3.3464,134.47,134.43,14.7772]
[1726146457562,1.3159,134.5,134.44,11.43]
[1726146457766,103.61205025,134.51,134.46,11.43]
[1726146458164,3.3456,134.5,134.46,14.7763]
[1726146458479,3.3456,134.5,134.42,3.5091]
[1726146458480,1.392,134.55,134.49,11.43]
[1726146458651,3.3452,134.52,134.49,11.43]